Cogmind - Beta 15 *** ADVENTURER MODE // 2025.05.21 @ 14:45:54 Player: BertMcSee Result: Self-destructed Performance ------------- Evolutions (2) 1000 Regions Visited (3) 600 Robots Destroyed (44) 220 Value Destroyed (1030) 1030 Prototype IDs (3) 60 Alien Tech Used (0) 0 Bonus (0) 0 TOTAL SCORE: 2910 Bonus ------- None Cogmind --------- Core Integrity 429/550 Matter 300/300 Energy 280/280 System Corruption 0% Temperature Cool (11) Movement Flying (101) Ox1 Location -8/Materials Parts ------- > --- POWER (1) -------- Heavy Ion Engine > --- PROPULSION (4) --- Improved Flight Unit Improved Flight Unit Improved Flight Unit Improved Flight Unit > --- UTILITY (4) ------ Medium Storage Unit Visual Processing Unit Signal Interpreter Advanced Targeting Computer > --- WEAPON (2) ------- Beam Rifle Light Assault Rifle > --- INVENTORY (10) --- Light Nuclear Core Ripper Peak State ------------ > --- POWER ------------ Light Nuclear Core > --- PROPULSION ------- Aluminum Leg Arachnoskeleton > --- UTILITY ---------- Medium Storage Unit Visual Processing Unit Subdweller Optics Signal Interpreter > --- WEAPON ----------- Barrage Gun Ripper > --- INVENTORY -------- Subdweller Power Source Particle Gun [Rating: 38] Favorites ----------- Power Ion Engine Engine Ion Engine Power Core Light Nuclear Core Propulsion Aluminum Leg Leg Aluminum Leg Wheel Subdweller Monowheel Flight Unit Improved Flight Unit Utility Seismic Detector Device Seismic Detector Storage Medium Storage Unit Processor Visual Processing Unit Weapon Assault Rifle Energy Gun Particle Gun Energy Cannon Subdweller Beam Cannon Ballistic Gun Assault Rifle Special Weapon Mining Laser Slashing Weapon Ripper Build | -11 -10 -10 -8 ------- Run | Yrd Mat Sub Mat Slots Evolved 4 | . . . 4 Power . | . . . . Propulsion 2 | . . . 2 Utility 2 | . . . 2 Weapon . | . . . . Parts Attached 44 | 7 7 16 14 Power 7 | 1 2 2 2 Engine 6 | 1 2 2 1 Core 1 | . . . 1 Reactor . | . . . . Propulsion 17 | 2 3 6 6 Treads . | . . . . Leg 8 | 2 3 1 2 Wheel 4 | . . 4 . Hover . | . . . . Flight 5 | . . 1 4 Utility 8 | 2 . 3 3 Device 4 | 2 . 2 . Storage 1 | . . . 1 Processor 3 | . . 1 2 Hackware . | . . . . Protection . | . . . . Artifact . | . . . . Weapon 12 | 2 2 5 3 Energy Gun 2 | . . . 2 Energy Cannon 2 | . . 2 . Ballistic Gun 6 | 2 1 2 1 Ballistic Cannon . | . . . . Launcher . | . . . . Special Weapon 1 | . 1 . . Impact Weapon . | . . . . Slashing Weapon 1 | . . 1 . Piercing Weapon . | . . . . Special Melee Weapon . | . . . . Unidentified Prototypes 3 | . . . 3 Parts Lost 5 | . . 5 . Power 1 | . . 1 . Propulsion 2 | . . 2 . Utility 1 | . . 1 . Weapon 1 | . . 1 . Highest Loss Streak 2 | . . 2 . To Critical Strikes 1 | . . 1 . Average Backups 3 | 2 4 3 3 Power . | . 1 . 1 Propulsion . | . . . . Utility 1 | . 1 1 . Weapon 1 | . 1 1 1 Tool/Special . | . . . . Unused Backups 4 | 1 1 1 1 Power 1 | . . . 1 Propulsion . | . . . . Utility 1 | . 1 . . Weapon 2 | 1 . 1 . Tool/Special . | . . . . Average Slot Usage (%) 86 | . 100 79 69 Engine 9 | . 14 7 2 Leg 14 | . 28 5 9 Wheel 5 | . . 11 . Device 20 | . 28 17 5 Processor 6 | . . 9 15 Energy Cannon 4 | . . 9 . Ballistic Gun 14 | . 26 6 7 Slashing Weapon 5 | . . 10 2 Peak Build Rating 38 | 9 9 19 38 Average Rating 13 | 5 9 13 33 On Entrance 8 | . 9 9 17 Naked Turns . | . . . . Heaviest Build 23 | 9 11 18 23 Greatest Support 60 | 20 20 40 60 Greatest Overweight (x) 7 | 1 . 5 7 Average Overweight (x) . | . . . . Largest Inventory Capacity 10 | 5 5 5 10 Average Capacity 5 | 5 5 5 9 Most Carried 5 | 4 5 5 5 Average Carried 4 | 2 4 4 3 Final Capacity 10 | 5 5 5 10 Final Carried 5 | 3 5 4 2 Class Distribution -------------------- 55% | Scavenger-Mutant 44% | Mutant Dominant Class ---------------- Mutant | -10/Materials Scavenger-Mutant | -10/Subcaves Scavenger-Mutant | -8/Materials Resources | -11 -10 -10 -8 ----------- Run | Yrd Mat Sub Mat Matter Collected 1234 | 309 322 285 318 Remotely . | . . . . Salvage Created 1404 | 120 443 362 479 Parts 106 | 14 24 28 40 Haulers Intercepted 3 | . 2 . 1 Recyclers Shooed 5 | 1 1 . 3 Parts Field Recycled . | . . . . Retrieved Matter . | . . . . Parts Self-Destructed . | . . . . Prevented . | . . . . Kills | -11 -10 -10 -8 ------- Run | Yrd Mat Sub Mat Combat Hostiles Destroyed 32 | . 9 8 15 Melee 4 | . . 4 . Guns 27 | . 9 3 15 Cannons 1 | . . 1 . Classes Destroyed 9 | 2 4 1 2 Worker 1 | . . . 1 Tunneler 3 | 3 . . . Hauler 3 | . 2 . 1 Recycler 1 | 1 . . . Watcher 4 | . 3 . 1 Swarmer 13 | . 3 . 10 Grunt 10 | . 6 . 4 Sentry 1 | . . . 1 Subdweller 8 | . . 8 . Best Kill Streak 6 | 3 3 3 6 Combat Bots Only 5 | . 3 3 5 Max Kills in Single Turn 2 | 1 2 1 1 Gunslinging 1 | . 1 . . Exploded . | . . . . Melee 1 | . . 1 . Uniques/NPCs Destroyed . | . . . . Combat | -11 -10 -10 -8 -------- Run | Yrd Mat Sub Mat Hostile Shots Fired 154 | . 30 47 77 Missed 39 | . 10 10 19 Hits 115 | . 20 37 58 Projectile 115 | . 20 37 58 AOE 2 | . . 2 . Critical Strikes 4 | . . 1 3 Damage Taken 1538 | . 168 869 501 Core 336 | . 25 190 121 Absorbed by Shields . | . . . . Ignored by Resistances 410 | . 52 209 149 Core Remaining (%) 57 | 100 . 14 . Volleys Fired 128 | 10 39 32 47 Largest 2 | 2 2 2 2 Hottest 100 | 40 100 80 93 Shots Fired 221 | 20 75 43 83 Gun 217 | 20 72 42 83 Cannon 1 | . . 1 . Launcher . | . . . . Special 3 | . 3 . . Kinetic 181 | 20 72 42 47 Thermal 40 | . 3 1 36 Explosive . | . . . . Electromagnetic . | . . . . Robot Hit Streak 41 | 6 21 41 14 Robot Miss Streak 5 | 2 3 1 5 Penetration Max . | . . . . Secondary Targets 1 | . 1 . . Max Gunslinging Chain 1 | . 1 . . Shots Hit Robots 176 | 13 58 48 57 Core Hits 71 | 5 26 14 26 Critical Kills 1 | . 1 . . Critical Parts Destroyed . | . . . . Critical Strikes 1 | . 1 . . Destroy 1 | . 1 . . Melee Attacks 13 | . . 13 . Impact . | . . . . Slashing 13 | . . 13 . Piercing . | . . . . Sneak Attacks . | . . . . Combat Hostiles . | . . . . Follow-up Attacks . | . . . . Damage Inflicted 2557 | 165 744 721 927 Guns 2326 | 165 743 501 917 Cannons 29 | . . 29 . Explosions . | . . . . Melee 191 | . . 191 . Ramming 11 | . 1 . 10 Kinetic 1942 | 165 743 501 533 Thermal 413 | . . 29 384 Explosive . | . . . . Electromagnetic . | . . . . Impact . | . . . . Slashing 191 | . . 191 . Piercing . | . . . . Highest Corruption . | . . . . Average Corruption . | . . . . Corruption Purged . | . . . . Corruption Blocked . | . . . . Overload Shots . | . . . . Overflow Damage . | . . . . Projectiles . | . . . . Explosions . | . . . . Melee . | . . . . Knockbacks . | . . . . Impact . | . . . . Kinetic . | . . . . Secondary . | . . . . Self-Inflicted Damage 5 | . . . 5 Shots . | . . . . Rammed 3 | . . . 3 Targets Rammed 4 | . 1 . 3 Kicked 1 | . 1 . . Crushed . | . . . . Highest Temperature 503 | . 40 . 503 Average Temperature 147 | . 14 . 163 Received Heat Transfer 462 | . 90 111 261 Effects 5 | . . . 5 Shutdowns 1 | . . . 1 Short Circuit 1 | . . . 1 Damage (minor) 1 | . . . 1 Damage (major) 2 | . . . 2 Siege Activations . | . . . . Martial Activations . | . . . . Shielding Activations . | . . . . Robots Disrupted . | . . . . Combat Hostiles . | . . . . Robots Corrupted . | . . . . Combat Hostiles . | . . . . Parts Fried . | . . . . Impact Corruptions . | . . . . Robots Melted . | . . . . Combat Hostiles . | . . . . Parts Melted 1 | . . . 1 Heat Transferred 962 | . . 37 925 Parts Sabotaged . | . . . . Parts Stolen . | . . . . Parts Stripped . | . . . . Power Chain Reactions . | . . . . Alert | -11 -10 -10 -8 ------- Run | Yrd Mat Sub Mat Maximum Alert Level 1 | . . . 1 Low Security (%) 97 | 100 100 . 88 Level 1 2 | . . . 11 Level 2 . | . . . . Level 3 . | . . . . Level 4 . | . . . . Level 5 . | . . . . High Security . | . . . . Max Security . | . . . . Peak Influence 226 | 10 60 . 226 Initial . | . . . . Average 22 | 1 7 . 80 Influence Increases 717 | 20 301 . 396 Destroy 0b10 Robot/C 480 | . 180 . 300 Destroy 0b10 Robot/NC 60 | 20 25 . 15 Destroy Leader 104 | . 50 . 54 Successful Hack 27 | . 27 . . Disable Machine 9 | . . . 9 Destroy Structure 7 | . 4 . 3 Lose Combat Pursuer 30 | . 15 . 15 Influence Decreases 511 | 20 301 . 190 Time Decay 511 | 20 301 . 190 Squads Dispatched 4 | . 1 . 3 Investigation 1 | . 1 . . Extermination . | . . . . Reinforcement 3 | . . . 3 Assault . | . . . . Garrison . | . . . . Intercept . | . . . . Searches Triggered . | . . . . Construction Impeded . | . . . . Haulers Reinforced . | . . . . Active Scanning Responses . | . . . . Cargo Convoy Interrupts . | . . . . Stealth | -11 -10 -10 -8 --------- Run | Yrd Mat Sub Mat Distress Signals 2 | . . . 2 Communications Jammed . | . . . . Distress Signals . | . . . . Times Spotted 54 | . 14 9 31 Peak Tracking Total 10 | . 3 3 10 Tactical Retreats 2 | . 1 . 1 Traps | -11 -10 -10 -8 ------- Run | Yrd Mat Sub Mat Traps Triggered 6 | . 1 4 1 Indirectly . | . . . . Trap Hack Attempts . | . . . . Triggered . | . . . . Disarmed . | . . . . Reprogrammed . | . . . . Reused . | . . . . Traps Extracted . | . . . . Installed . | . . . . Triggered . | . . . . Machines | -11 -10 -10 -8 ---------- Run | Yrd Mat Sub Mat Machines Disabled 2 | . . 1 1 Max in Single Turn 1 | . . 1 1 Machines Repaired . | . . . . Machines Dismantled . | . . . . Machines Sabotaged . | . . . . Overloaded Fab Kills . | . . . . Hacking | -11 -10 -10 -8 --------- Run | Yrd Mat Sub Mat Machines Accessed 10 | . 7 3 . Terminals 5 | . 5 . . Fabricators . | . . . . Repair Stations . | . . . . Recycling Units 2 | . 2 . . Scanalyzers . | . . . . Garrison Access . | . . . . Total Hacks 16 | . 13 3 . Successful 11 | . 8 3 . Failed 5 | . 5 . . Catastrophic . | . . . . Database Lockouts . | . . . . Manual 3 | . 2 1 . Terminals 11 | . 11 . . Fabricators . | . . . . Repair Stations . | . . . . Recycling Units 2 | . 2 . . Scanalyzers . | . . . . Garrison Access . | . . . . Terminal Hacks 9 | . 6 3 . Record 1 | . . 1 . Open Door 1 | . . 1 . Level Access Points 1 | . 1 . . Branch Access Points 1 | . 1 . . Alert Level 1 | . 1 . . Locate Traps 1 | . 1 . . Patrol Status 1 | . 1 . . Zone Layout 1 | . 1 . . Release Object 1 | . . 1 . Fabricator Hacks . | . . . . Repair Station Hacks . | . . . . Recycling Unit Hacks 2 | . 2 . . Retrieve Components 2 | . 2 . . Scanalyzer . | . . . . Garrison Access Hacks . | . . . . Unauthorized Hacks . | . . . . Terminals . | . . . . Fabricators . | . . . . Repair Stations . | . . . . Recycling Units . | . . . . Scanalyzers . | . . . . Garrison Access . | . . . . Data Cores Recovered . | . . . . Used . | . . . . Hacking Detections 3 | . 3 . . Full Trace Events . | . . . . Feedback Events . | . . . . Feedback Blocked . | . . . . Robot Schematics Acquired . | . . . . Robots Built . | . . . . Authchips . | . . . . Time . | . . . . Total Robot Build Rating . | . . . . Part Schematics Acquired . | . . . . Parts Built . | . . . . Authchips . | . . . . Time . | . . . . Total Part Build Rating . | . . . . Parts Repaired . | . . . . Time . | . . . . Parts Recycled . | . . . . Recycled Matter . | . . . . Retrieved Matter . | . . . . Retrieved Components 7 | . 7 . . Parts Scanalyzed . | . . . . Part Schematics Acquired . | . . . . Parts Damaged . | . . . . Bothacking | -11 -10 -10 -8 ------------ Run | Yrd Mat Sub Mat Used RIF Installer . | . . . . Robots Hacked . | . . . . Non-combat . | . . . . Combat . | . . . . Robot Hacks Applied . | . . . . Relay Couplers Released . | . . . . Fabnet Peak Effective % . | . . . . Robots Rewired . | . . . . Allies Hacked . | . . . . Hacks Repelled . | . . . . Allies | -11 -10 -10 -8 -------- Run | Yrd Mat Sub Mat Total Allies . | . . . . Largest Group . | . . . . Highest-Rated Group . | . . . . Highest-Rated Ally . | . . . . Total Orders . | . . . . Ally Attacks . | . . . . Total Damage . | . . . . Kills . | . . . . Allies Corrupted . | . . . . Allies Melted . | . . . . Intel | -11 -10 -10 -8 ------- Run | Yrd Mat Sub Mat Active Infowar (turns) 3973 | 32 1569 1899 473 Optics 2079 | . . 1606 473 Terrain 1894 | 32 1569 293 . Seismic 3179 | 8 1569 1602 . Robot Analysis Total . | . . . . Derelict Logs Recovered 1 | . . 1 . Drone Launches . | . . . . Drone Recoveries . | . . . . Exploration | -11 -10 -10 -8 ------------- Run | Yrd Mat Sub Mat Turns Passed 4069 | 128 1569 1899 473 Spaces Moved 2612 | 72 1000 1269 271 Core 191 | 7 . 182 2 Treads . | . . . . Legs 1459 | 65 1000 202 192 Wheels 885 | . . 885 . Hover . | . . . . Flight 77 | . . . 77 Fastest Speed 31 | 50 120 110 31 Average Speed 126 | 115 120 136 100 Slowest Speed 400 | 120 120 300 400 Overloaded Moves . | . . . . Propulsion Burnouts . | . . . . Robots Hopped . | . . . . Potential Cave-ins . | . . . . Cave-ins Triggered . | . . . . Exploration Rate (%) 43 | 5 99 43 26 Regions Visited 3 Branch Regions 1 Pre-discovered Areas 1 | . . 1 . Known Exits Taken . | . . . . Unknown Exits Taken 3 | 1 1 1 . Scrap Searched 5 | . . 5 . Spaces Dug 3 | . 3 . . Terrain Destroyed 3 | . 3 . . Melee . | . . . . Projectile 3 | . 3 . . AOE . | . . . . Terrain Rammed . | . . . . Walls Destroyed . | . . . . Machines Disabled . | . . . . Actions | -11 -10 -10 -8 --------- Run | Yrd Mat Sub Mat Total 3143 | 93 1289 1369 392 Wait 292 | . 231 17 44 Move 2609 | 71 999 1268 271 Hop . | . . . . Pick Up 16 | 4 4 4 4 Fast Attach 25 | 7 . 9 9 Attach 5 | . . 2 3 Detach . | . . . . Swap 19 | . 9 7 3 Drop 31 | 1 6 16 8 Fire 128 | 10 39 32 47 Melee 13 | . . 13 . Ram 3 | . . . 3 Kick 1 | . 1 . . Crush . | . . . . Escape Stasis . | . . . . Rewire . | . . . . Trap . | . . . . Miscellaneous 1 | . . 1 . Route ------- -11/Scrapyard -10/Materials (discovered 6 exits: *Mat x3 / *Min x2 / *Sub) -10/Subcaves -8/Materials (discovered 2 exits: [*Fac] / *Sto) History --------- Turn | Location | Event 14 | -11/Scrapyard | Discovered new exit (range 15) 129 | -11/Scrapyard | Entered Materials 301 | -10/Materials | Build established: Mutant 330 | -10/Materials | Discovered new exit (range 12) 490 | -10/Materials | Discovered new exit (range 15) 818 | -10/Materials | Discovered new exit (range 13) 1252 | -10/Materials | Identified exit to Mines 1343 | -10/Materials | Discovered new exit (range 5) 1582 | -10/Materials | Discovered new exit (range 16) 1600 | -10/Materials | Discovered new exit (range 10) 1639 | -10/Materials | Identified exit to Materials 1698 | -10/Materials | Entered Subcaves 1699 | -10/Subcaves | Approached by a straggling Scientist 1742 | -10/Subcaves | Shifting Twisted Machinery released Sub. Power Source 1837 | -10/Subcaves | Build established: Scavenger-Mutant 2034 | -10/Subcaves | Core integrity fell below 50% 2118 | -10/Subcaves | A swath of the cavern ceiling suddenly collapsed 2227 | -10/Subcaves | Visited 4L-MR0's lab 2253 | -10/Subcaves | Found Prototype Leg 2413 | -10/Subcaves | A swath of the cavern ceiling suddenly collapsed 2698 | -10/Subcaves | Released subatomizers from SUBCON Basin 3315 | -10/Subcaves | Core integrity fell below 20% 3406 | -10/Subcaves | Discovered new exit (range 21) 3418 | -10/Subcaves | Learned location of Zion (-7) 3418 | -10/Subcaves | Met a Zionite searching for "candidates" 3449 | -10/Subcaves | Curiously followed by a Cobbler waking with a query about "LVR3C" 3511 | -10/Subcaves | Visited Clippyterm 3597 | -10/Subcaves | Entered Materials 3597 | -8/Materials | Evolved 4 slots: Propulsion x2, Utility x2 3597 | -8/Materials | Identified Arachnoskeleton 3598 | -8/Materials | Identified exit to Storage 3598 | -8/Materials | Attached Arachnoskeleton, gained temporary slots: Propulsion x3 4046 | -8/Materials | Discovered new exit (range 17) 4070 | -8/Materials | Self-destructed Last Messages --------------- 04036_ U-05 Engineer works on Matter Filter. 04038_ M-13 Machinist repairs R-06 Scavenger. 04039_ U-05 Engineer works on Matter Filter. 04043_ K-01 Serf cleans the Repair Station. 04044_ U-05 Engineer works on Matter Filter. 04046_ EXIT=FOUND 04046_ U-05 Engineer works on Matter Filter. 04047_ O-16 Technician: "IFF HANDSHAKE FAILED. SECURING TERMINAL." 04050_ U-05 Engineer works on Matter Filter. 04057_ U-05 Engineer completes Matter Filter. 04060_ ALERT: Hostiles spotted, dispatching reinforcements to Terminal M004. 04060_ W-25 Informer distress signal alerts nearby ally. 04062_ C-30 ARC bursts open, deploying its payload. 04062_ B-36 Bruiser unfolds itself. 04062_ G-47 Trooper unfolds itself. 04066_ Matter Filter comes online. 04067_ U-05 Engineer works on Matter Pump. 04068_ Critical hit (Burn: +37). 04068_ U-05 Engineer works on Matter Pump. Map ----- +----------------------------------------------------+ | ??????????? ##############+##########??# "R" | | ??????????? ! #??# "[" | | ??????????? ^^ #### *% | | ??????????? < ^ %/% %"" | | ????????????? ####[*=""" | | ??????????????????# #??#=* """ [ | | ??????????????????# #??# | | ??????????????????# """" #??######### | | ??????????????????# """" #??????????? | | ??????????????????# """"" #??????????? | | ??????????????????#* """"" ""#????????? | | ??????????????????# """"" T"#????????? | | ??????????????????# g """"" ""#????????? | | ??????????######### g """"" ###????????? | | ??????? #??????????? | | ??????????######### uuu #????####### | | ??????????????????# <<< w""" a###### | | ??????????????????# w """ m / """ | | ??????????????????# ! """ ##### """ | | ??????????????????# #???# """ | | ??????????????????# g #???# | | ??????????????????# b g % #???# = | | ??????????????##### #???####### | | ??????????????+ #???# | | ??????????????# #???# | | ??????????????# @ #???# """ | | ??????????????+ #???# """ | | ??????????????######## o #???# """ | | ?????????????????????### ####???# | | ???????????????????????# ####+######??????####### | | ???????????????????????# #??????????????????????? | | ???????????????????????# #??????????????????????? | | ???????????????????????#+#??????????????????????? | | ???????????????????????? ???????????????????????? | | ????????????????????????"???????????????????????? | | ????????????????????????"???????????????????????? | | ????????????????????????????????????????????????? | | ????????????????????????????????????????????????? | | ????????????????????????????????????????????????? | | ????????????????????????????????????????????????? | | ????????????????????????????????????????????????? | | ????????????????????????????????????????????????? | | ????????????????????????????????????????????????? | | ????????????????????????????????????????????????? | | ????????????????????????????????????????????????? | | ????????????????????????????????????????????????? | | ????????????????????????????????????????????????? | | ????????????????????????????????????????????????? | | ????????????????????????????????????????????????? | | ????????????????????????????????????????????????? | +----------------------------------------------------+ Best States ------------- Heat Dissipation 31 Energy Generation 15 Energy Capacity 280 Matter Stores 300 Matter Capacity 300 Sight Range 21 Terrain Scan Range 16 Terrain Scan Density 10 Resistance: KI 20 Resistance: TH 20 Resistance: EX 20 Resistance: EM 20 Resistance: I 20 Resistance: S 20 Resistance: P 20 Evasion (%) 57 Targeting Accuracy 8 Offensive Hacking 10 Item Schematics ----------------- None Robot Schematics ------------------ None Fabricated ------------ Nothing Repaired ---------- Nothing Alien Tech Used ----------------- None Achievements -------------- None Challenges ------------ None Game ------ Seed ActuatorSigixAirjet Manual? 0 Play Time 00:39:08 Cumulative 11.2 hours Start 2025.05.21 @ 13:54:38 End 2025.05.21 @ 14:45:54 Sessions 3 Manual Loads 0 Difficulty Adventurer Special Mode None Game No. 20 Rogue 12 Adventurer 8 Explorer 0 Win Type - Total 0 Types 0/0/0/0/0/0/0/0/0/0 Lore% 9 Gallery% 14 Achievement% 14 Wizard Run 0 Options --------- Layout 0 ASCII 0 Keyboard 0 Movement Arrows Keybinds 0 Fullscreen 2 Font 18/SmallcapsGlow Map View 76x50 Zoom Use 0% Tactical HUD 1 Map Filters NONE Filters NONE Steam 1 RUN: 5e49b64a-410f-4348-bfca-1a239caf9c87